[Event "Elegant 1st Division League 2024"]
[Site "Dhaka"]
[Date "2024.07.12"]
[Round "2.22"]
[White "abzid, Rahman"]
[Black "Uddipan Roy"]
[Result "0-1"]
[Annotator "RC"]
[ECO "E99"]
[WhiteElo "2037"]
[BlackElo "1967"]
[PlyCount "104"]
[EventDate "2024.07.10"]
[EventType "team-tourn"]
[EventCountry "BAN"]
[SourceTitle "playchess.com"]
[Source "ChessBase"]
[SourceQuality "1"]
[TimeControl "5400+30"]

1. d4 {[%emt 0:01:19]} Nf6 {[%emt 0:00:04]} 2. c4 {[%emt 0:00:10]} g6 {[%emt 0:00:09]} 3. Nc3 {[%emt 0:00:07]} Bg7 {[%emt 0:00:05]} 4. e4 {[%emt 0:01:13]} d6 {[%emt 0:00:03]} 5. Nf3 {[%emt 0:00:08]} O-O {[%emt 0:00:06]} 6. Be2 {[%emt 0:00:09]} e5 {[%emt 0:06:09]} 7. O-O {[%emt 0:01:55]} Nc6 {[%emt 0:02:45]} 8. d5 {[%emt 0:01:00]} Ne7 {[%emt 0:00:02]} 9. Ne1 {[%emt 0:00:31]} Nd7 {[%emt 0:03:12]} 10. Be3 {[%emt 0:00:46]} f5 {[%emt 0:00:11]} 11. f3 {[%emt 0:00:08]} f4 {[%emt 0:02:20]} 12. Bf2 {[%emt 0:00:02]} g5 {[%emt 0:05:00]} 13. Nd3 {[%emt 0:02:43]} Ng6 {[%emt 0:00:44]} 14. c5 {[%emt 0:04:38]} Nf6 {[%emt 0:11:42]} 15. cxd6 {[%emt 0:03:03]} cxd6 {[%emt 0:00:25]} 16. Rc1 {[%emt 0:00:17]} Rf7 {[%emt 0:01:12]} 17. Kh1 {[%emt 0:06:33]} h5 {[%emt 0:07:25]} 18. g3 {[%emt 0:04:50]} fxg3 {[%emt 0:07:22]} 19. Bxg3 {[%emt 0:01:18]} h4 {[%emt 0:10:59]} 20. Bf2 {[%emt 0:03:35]} Nh5 {[%emt 0:00:20]} 21. Rg1 {[%emt 0:02:53]} Bd7 {[%emt 0:05:50]} 22. Be3 {[%emt 0:01:16]} Nhf4 {[%emt 0:15:06]} 23. Nxf4 {[%emt 0:00:12]} Nxf4 {[%emt 0:00:23]} 24. Bf1 {[%emt 0:01:57]} Qf6 {[%emt 0:10:24]} 25. Rc2 {[%emt 0:12:26]} Kh7 {[%emt 0:01:44]} 26. Rf2 {[%emt 0:01:20]} Bh6 {[%emt 0:01:43]} 27. Ne2 {[%emt 0:06:17]} Nh3 {[%emt 0:04:26]} 28. Bxh3 {[%emt 0:00:29]} Bxh3 {[%emt 0:00:02]} 29. Qd2 {[%emt 0:02:21]} Rg8 {[%emt 0:00:16]} 30. Qd3 {[%emt 0:07:29]} a6 {[%emt 0:02:58]} 31. Qb3 {[%emt 0:06:49]} Qg6 {[%emt 0:02:13]} 32. Qd3 {[%emt 0:06:05]} Bd7 {[%emt 0:00:35]} 33. f4 {[%emt 0:02:55]} Bb5 {[%emt 0:00:19]} 34. Qc2 {[%emt 0:00:03]} g4 {[%emt 0:00:43]} 35. f5 {[%emt 0:00:22]} Qh5 {[%emt 0:00:18]} 36. Bxh6 {[%emt 0:05:36]} g3 {[%emt 0:00:32]} 37. Rfg2 {[%emt 0:00:18]} Qf3 {[%emt 0:00:38]} 38. h3 {[%emt 0:07:02]} Kxh6 {[%emt 0:00:17]} 39. Qd2+ {[%emt 0:01:05]} Kh7 {[%emt 0:00:30]} 40. Nc3 {[%emt 0:00:28]} Rc7 {[%emt 0:00:39]} 41. Qd1 {[%emt 0:02:22]} Qxd1 {[%emt 0:00:26]} 42. Rxd1 {[%emt 0:00:02]} Rgc8 {[%emt 0:00:39]} 43. Rgd2 {[%emt 0:02:05]} Be8 {[%emt 0:00:30]} 44. Kg2 {[%emt 0:00:16]} b5 {[%emt 0:00:07]} 45. a3 {[%emt 0:00:37]} Bh5 {[%emt 0:00:20]} 46. Rf1 {[%emt 0:00:25]} Kg7 {[%emt 0:00:31]} 47. f6+ {[%emt 0:01:35]} Kf7 {[%emt 0:00:11]} 48. Rd3 {[%emt 0:00:42]} Rc4 {[%emt 0:00:15]} 49. Re3 {[%emt 0:00:10]} Rd4 {[%emt 0:00:16]} 50. Rf5 {[%emt 0:00:22]} Bg6 {[%emt 0:00:09]} 51. Rg5 {[%emt 0:01:18]} Rd2+ {[%emt 0:00:11]} 52. Kf3 {[%emt 0:00:06]} Rf2+ {[%emt 0:00:17]} 0-1

[Event "Elegant 1st Division League 2024"]
[Site "Dhaka"]
[Date "2024.07.12"]
[Round "2.23"]
[White "Abdul, Momin"]
[Black "Tajane Ganesh"]
[Result "1-0"]
[Annotator "RC"]
[ECO "B01"]
[WhiteElo "1911"]
[BlackElo "1772"]
[PlyCount "85"]
[EventDate "2024.07.10"]
[EventType "team-tourn"]
[EventCountry "BAN"]
[SourceTitle "playchess.com"]
[Source "ChessBase"]
[SourceQuality "1"]
[TimeControl "5400+30"]

1. e4 {[%emt 0:05:43]} d5 {[%emt 0:00:03]} 2. exd5 {[%emt 0:00:57]} Nf6 {[%emt 0:00:03]} 3. d4 {[%emt 0:00:23]} Bg4 {[%emt 0:00:03]} 4. Ne2 {[%emt 0:01:02]} Qxd5 {[%emt 0:03:14]} 5. Nbc3 {[%emt 0:07:13]} Qd7 {[%emt 0:03:10]} 6. h3 {[%emt 0:03:46]} Bxe2 {[%emt 0:02:09]} 7. Bxe2 {[%emt 0:00:11]} e6 {[%emt 0:00:57]} 8. Bf3 {[%emt 0:00:43]} c6 {[%emt 0:01:25]} 9. O-O {[%emt 0:00:38]} Be7 {[%emt 0:00:16]} 10. Ne4 {[%emt 0:01:04]} O-O {[%emt 0:01:05]} 11. b3 {[%emt 0:01:05]} Qc7 {[%emt 0:08:28]} 12. Qe2 {[%emt 0:07:37]} Nxe4 {[%emt 0:03:39]} 13. Bxe4 {[%emt 0:00:12]} Nd7 {[%emt 0:00:20]} 14. c4 {[%emt 0:00:57]} Bf6 {[%emt 0:01:35]} 15. Bb2 {[%emt 0:00:51]} c5 {[%emt 0:01:26]} 16. Rad1 {[%emt 0:01:24]} Bxd4 {[%emt 0:01:51]} 17. Bxd4 {[%emt 0:00:07]} cxd4 {[%emt 0:00:06]} 18. Rxd4 {[%emt 0:00:16]} g6 {[%emt 0:07:44]} 19. Rfd1 {[%emt 0:02:12]} Nc5 {[%emt 0:16:22]} 20. Bc2 {[%emt 0:04:13]} Rad8 {[%emt 0:01:47]} 21. Qe3 {[%emt 0:01:11]} Rxd4 {[%emt 0:03:04]} 22. Qxd4 {[%emt 0:00:11]} e5 {[%emt 0:14:05]} 23. Qd6 {[%emt 0:03:57]} Rc8 {[%emt 0:02:21]} 24. Qxc7 {[%emt 0:05:42]} Rxc7 {[%emt 0:00:02]} 25. Kf1 {[%emt 0:00:17]} Kf8 {[%emt 0:02:36]} 26. Rd5 {[%emt 0:03:49]} f6 {[%emt 0:01:07]} 27. Rd8+ {[%emt 0:00:52]} Ke7 {[%emt 0:00:47]} 28. Rh8 {[%emt 0:00:25]} Kd6 {[%emt 0:11:36]} 29. g3 {[%emt 0:01:58]} f5 {[%emt 0:03:56]} 30. b4 {[%emt 0:01:31]} Na6 {[%emt 0:05:27]} 31. c5+ {[%emt 0:00:31]} Kd5 {[%emt 0:00:14]} 32. a3 {[%emt 0:01:35]} Kc4 {[%emt 0:00:50]} 33. Rd8 {[%emt 0:03:23]} e4 {[%emt 0:02:55]} 34. Bd1 {[%emt 0:11:13]} Kc3 {[%emt 0:01:13]} 35. Ra8 {[%emt 0:07:26]} Rd7 {[%emt 0:01:29]} 36. Be2 {[%emt 0:01:37]} g5 {[%emt 0:00:28]} 37. Rxa7 {[%emt 0:00:13]} Nb8 {[%emt 0:00:24]} 38. b5 {[%emt 0:00:21]} Kd4 {[%emt 0:00:39]} 39. c6 {[%emt 0:00:29]} bxc6 {[%emt 0:00:02]} 40. Rxd7+ {[%emt 0:00:04]} Nxd7 {[%emt 0:00:03]} 41. bxc6 {[%emt 0:00:02]} Nb6 {[%emt 0:01:13]} 42. c7 {[%emt 0:00:05]} Kc5 {[%emt 0:00:24]} 43. Ba6 {[%emt 0:00:07]} 1-0

[Event "Elegant 1st Division League 2024"]
[Site "Dhaka"]
[Date "2024.07.12"]
[Round "2.24"]
[White "Bhuiyan, Golam Mostafa"]
[Black "Bivor Adak"]
[Result "0-1"]
[Annotator "RC"]
[ECO "D52"]
[WhiteElo "2078"]
[BlackElo "1967"]
[PlyCount "156"]
[EventDate "2024.07.10"]
[EventType "team-tourn"]
[EventCountry "BAN"]
[SourceTitle "playchess.com"]
[Source "ChessBase"]
[SourceQuality "1"]
[TimeControl "5400+30"]

1. d4 {[%emt 0:07:32]} d5 {[%emt 0:01:01]} 2. c4 {[%emt 0:00:02]} e6 {[%emt 0:01:00]} 3. Nf3 {[%emt 0:00:16]} Nf6 {[%emt 0:01:12]} 4. Nc3 {[%emt 0:00:10]} c6 {[%emt 0:02:20]} 5. Bg5 {[%emt 0:00:17]} Nbd7 {[%emt 0:00:46]} 6. e3 {[%emt 0:00:15]} Qa5 {[%emt 0:00:42]} 7. Bxf6 {[%emt 0:07:34]} Nxf6 {[%emt 0:00:16]} 8. Bd3 {[%emt 0:00:05]} dxc4 {[%emt 0:04:58]} 9. Bxc4 {[%emt 0:00:02]} b5 {[%emt 0:00:23]} 10. Bb3 {[%emt 0:00:42]} Be7 {[%emt 0:09:21]} 11. O-O {[%emt 0:00:19]} O-O {[%emt 0:00:07]} 12. Re1 {[%emt 0:00:27]} c5 {[%emt 0:05:44]} 13. a3 {[%emt 0:00:38]} Bb7 {[%emt 0:02:51]} 14. Qe2 {[%emt 0:00:47]} a6 {[%emt 0:02:49]} 15. Rad1 {[%emt 0:05:19]} Rad8 {[%emt 0:06:33]} 16. Rd2 {[%emt 0:01:05]} Qb6 {[%emt 0:06:40]} 17. Red1 {[%emt 0:00:24]} Ne4 {[%emt 0:10:15]} 18. Nxe4 {[%emt 0:03:11]} Bxe4 {[%emt 0:00:11]} 19. Bc2 {[%emt 0:00:44]} Bxf3 {[%emt 0:01:51]} 20. Qxf3 {[%emt 0:00:05]} cxd4 {[%emt 0:00:10]} 21. exd4 {[%emt 0:06:12]} Bf6 {[%emt 0:02:34]} 22. Qe3 {[%emt 0:04:26]} Rd6 {[%emt 0:02:00]} 23. Be4 {[%emt 0:00:47]} Rfd8 {[%emt 0:00:25]} 24. d5 {[%emt 0:01:04]} Qxe3 {[%emt 0:00:09]} 25. fxe3 {[%emt 0:00:38]} Kf8 {[%emt 0:04:19]} 26. Bf3 {[%emt 0:00:39]} exd5 {[%emt 0:00:11]} 27. b3 {[%emt 0:02:13]} d4 {[%emt 0:02:58]} 28. exd4 {[%emt 0:00:18]} Bxd4+ {[%emt 0:01:04]} 29. Kf1 {[%emt 0:00:26]} Bc5 {[%emt 0:05:26]} 30. Rxd6 {[%emt 0:00:09]} Rxd6 {[%emt 0:00:04]} 31. a4 {[%emt 0:00:48]} bxa4 {[%emt 0:01:42]} 32. bxa4 {[%emt 0:00:03]} Bd4 {[%emt 0:01:42]} 33. h3 {[%emt 0:00:14]} a5 {[%emt 0:00:20]} 34. Rb1 {[%emt 0:00:36]} g6 {[%emt 0:00:34]} 35. Rb5 {[%emt 0:00:07]} Bc3 {[%emt 0:00:17]} 36. Rd5 {[%emt 0:00:35]} Rb6 {[%emt 0:00:25]} 37. Rd3 {[%emt 0:01:23]} Bb4 {[%emt 0:00:47]} 38. Rd5 {[%emt 0:00:40]} Re6 {[%emt 0:00:39]} 39. Rd1 {[%emt 0:01:37]} Ke7 {[%emt 0:00:18]} 40. Bd5 {[%emt 0:01:02]} Re5 {[%emt 0:00:41]} 41. Bc6 {[%emt 0:00:18]} Rc5 {[%emt 0:00:19]} 42. Bb5 {[%emt 0:00:14]} Ke6 {[%emt 0:00:40]} 43. Bd3 {[%emt 0:01:53]} f5 {[%emt 0:00:14]} 44. Kf2 {[%emt 0:00:33]} Rc3 {[%emt 0:00:38]} 45. Kf1 {[%emt 0:09:23]} Ke5 {[%emt 0:00:29]} 46. Bb5 {[%emt 0:00:56]} Rc2 {[%emt 0:00:17]} 47. Kg1 {[%emt 0:03:58]} f4 {[%emt 0:00:49]} 48. Rf1 {[%emt 0:00:13]} Bc5+ {[%emt 0:00:45]} 49. Kh1 {[%emt 0:00:02]} Bf2 {[%emt 0:00:24]} 50. Rb1 {[%emt 0:02:49]} Kd4 {[%emt 0:02:15]} 51. Rd1+ {[%emt 0:01:41]} Kc5 {[%emt 0:01:32]} 52. Bd3 {[%emt 0:00:34]} Ra2 {[%emt 0:00:08]} 53. Bb5 {[%emt 0:00:39]} Be3 {[%emt 0:00:46]} 54. Bd7 {[%emt 0:00:56]} g5 {[%emt 0:00:49]} 55. Be8 {[%emt 0:02:03]} h5 {[%emt 0:00:47]} 56. Rd5+ {[%emt 0:00:59]} Kxd5 {[%emt 0:00:27]} 57. Bf7+ {[%emt 0:00:11]} Kc5 {[%emt 0:00:01]} 58. Bxa2 {[%emt 0:00:03]} Kb4 {[%emt 0:00:01]} 59. Bf7 {[%emt 0:06:53]} Kxa4 {[%emt 0:00:06]} 60. Bxh5 {[%emt 0:00:17]} Bf2 {[%emt 0:00:07]} 61. Bf7 {[%emt 0:15:25]} Kb4 {[%emt 0:00:43]} 62. Kh2 {[%emt 0:15:51]} a4 {[%emt 0:00:18]} 63. g4 {[%emt 0:01:19]} Kc3 {[%emt 0:00:30]} 64. Kg2 {[%emt 0:00:02]} Bh4 {[%emt 0:00:09]} 65. Kf3 {[%emt 0:00:03]} a3 {[%emt 0:00:09]} 66. Ke4 {[%emt 0:00:23]} Kb2 {[%emt 0:00:05]} 67. Kd3 {[%emt 0:00:17]} f3 {[%emt 0:00:23]} 68. Ke3 {[%emt 0:00:21]} f2 {[%emt 0:00:06]} 69. Ke2 {[%emt 0:00:11]} a2 {[%emt 0:00:04]} 70. Bxa2 {[%emt 0:00:02]} Kxa2 {[%emt 0:00:07]} 71. Kf1 {[%emt 0:00:06]} Kb1 {[%emt 0:00:05]} 72. Kg2 {[%emt 0:00:03]} Kc2 {[%emt 0:00:08]} 73. Kh2 {[%emt 0:00:07]} f1=R {[%emt 0:00:10]} 74. Kg2 {[%emt 0:00:02]} Rf2+ {[%emt 0:00:11]} 75. Kh1 {[%emt 0:00:10]} Kd3 {[%emt 0:00:10]} 76. Kg1 {[%emt 0:00:04]} Ke3 {[%emt 0:00:06]} 77. Kh1 {[%emt 0:00:05]} Kf3 {[%emt 0:00:12]} 78. Kg1 {[%emt 0:00:01]} Kg3 {[%emt 0:00:17]} 0-1

[Event "Elegant 1st Division League 2024"]
[Site "Dhaka"]
[Date "2024.07.13"]
[Round "3.1"]
[White "Bhosale Shriraj"]
[Black "Ahmed, Mahtabuddin"]
[Result "1-0"]
[Annotator "ChessBase"]
[ECO "A07"]
[WhiteElo "2043"]
[BlackElo "1974"]
[PlyCount "141"]
[EventDate "2024.07.10"]
[EventType "team-tourn"]
[EventCountry "BAN"]
[SourceTitle "playchess.com"]
[Source "ChessBase"]
[SourceQuality "1"]
[TimeControl "5400+30"]

1. Nf3 {[%emt 0:00:09]} d5 {[%emt 0:00:21]} 2. g3 {[%emt 0:00:11]} c6 {[%emt 0:00:24]} 3. Bg2 {[%emt 0:00:21]} Bf5 {[%emt 0:00:28]} 4. d3 {[%emt 0:00:22]} h6 {[%emt 0:01:22]} 5. O-O {[%emt 0:00:41]} Nf6 {[%emt 0:00:09]} 6. c3 {[%emt 0:01:16]} Nbd7 {[%emt 0:00:57]} 7. Nbd2 {[%emt 0:00:30]} e5 {[%emt 0:01:41]} 8. h3 {[%emt 0:01:15]} Be7 {[%emt 0:01:47]} 9. Re1 {[%emt 0:10:07]} O-O {[%emt 0:00:22]} 10. e4 {[%emt 0:00:05]} dxe4 {[%emt 0:00:34]} 11. dxe4 {[%emt 0:00:27]} Bh7 {[%emt 0:03:47]} 12. Qc2 {[%emt 0:01:25]} Qc7 {[%emt 0:00:38]} 13. Nh4 {[%emt 0:01:18]} Rfd8 {[%emt 0:03:21]} 14. Nf5 {[%emt 0:03:15]} Bf8 {[%emt 0:02:47]} 15. Nf1 {[%emt 0:07:19]} Nc5 {[%emt 0:01:25]} 16. Be3 {[%emt 0:01:33]} Qc8 {[%emt 0:03:59]} 17. Bxc5 {[%emt 0:08:37]} Bxc5 {[%emt 0:00:22]} 18. b4 {[%emt 0:00:38]} Bf8 {[%emt 0:00:21]} 19. N1e3 {[%emt 0:03:41]} Qe6 {[%emt 0:01:03]} 20. Bf1 {[%emt 0:01:14]} Rd7 {[%emt 0:01:51]} 21. Bc4 {[%emt 0:00:54]} Qe8 {[%emt 0:01:03]} 22. Ng4 {[%emt 0:05:41]} Nxg4 {[%emt 0:03:14]} 23. hxg4 {[%emt 0:00:04]} g6 {[%emt 0:03:18]} 24. Ne3 {[%emt 0:00:25]} Rad8 {[%emt 0:03:25]} 25. Rad1 {[%emt 0:01:05]} Rxd1 {[%emt 0:04:11]} 26. Rxd1 {[%emt 0:00:04]} Rxd1+ {[%emt 0:04:07]} 27. Qxd1 {[%emt 0:00:05]} Qe7 {[%emt 0:03:46]} 28. Kg2 {[%emt 0:02:41]} Kg7 {[%emt 0:53:47]} 29. Bb3 {[%emt 0:01:35]} g5 {[%emt 0:00:00]} 30. Qd3 {[%emt 0:03:43]} Qd6 {[%emt 0:00:00]} 31. Qc4 {[%emt 0:02:26]} Qd7 {[%emt 0:00:00]} 32. a4 {[%emt 0:00:15]} a6 {[%emt 0:00:00]} 33. a5 {[%emt 0:16:16]} Bg6 {[%emt 0:00:00]} 34. Nf5+ {[%emt 0:00:03]} Bxf5 {[%emt 0:00:00]} 35. gxf5 {[%emt 0:00:11]} Bd6 {[%emt 0:00:00]} 36. Qd3 {[%emt 0:02:25]} Qe7 {[%emt 0:00:00]} 37. Bd1 {[%emt 0:01:33]} Bc7 {[%emt 0:00:00]} 38. Bh5 {[%emt 0:00:45]} Bb8 {[%emt 0:00:00]} 39. Qe3 {[%emt 0:05:54]} c5 {[%emt 0:00:00]} 40. bxc5 {[%emt 0:05:21]} Ba7 {[%emt 0:00:00]} 41. Qd2 {[%emt 0:00:09]} Qxc5 {[%emt 0:00:00]} 42. Qa2 {[%emt 0:00:06]} Qe7 {[%emt 0:00:00]} 43. Qd5 {[%emt 0:00:08]} Bb8 {[%emt 0:00:00]} 44. f6+ {[%emt 0:02:05]} Kxf6 {[%emt 0:00:00]} 45. Bxf7 {[%emt 0:00:05]} Qxf7 {[%emt 0:02:15]} 46. Qd8+ {[%emt 0:00:01]} Qe7 {[%emt 0:01:50]} 47. Qxb8 {[%emt 0:00:11]} Kg7 {[%emt 0:05:25]} 48. c4 {[%emt 0:00:51]} g4 {[%emt 0:00:00]} 49. Qc8 {[%emt 0:01:35]} h5 {[%emt 0:00:00]} 50. c5 {[%emt 0:03:37]} Qf7 {[%emt 0:00:00]} 51. Kg1 {[%emt 0:00:05]} Qb3 {[%emt 0:00:35]} 52. Qc7+ {[%emt 0:00:24]} Kf6 {[%emt 0:01:55]} 53. Qb6+ {[%emt 0:00:25]} Qe6 {[%emt 0:00:00]} 54. Qxb7 {[%emt 0:00:06]} Qc4 {[%emt 0:00:05]} 55. Qb6+ {[%emt 0:01:08]} Kg5 {[%emt 0:01:25]} 56. Qd8+ Kg6 {[%emt 0:00:00]} 57. Qd6+ {[%emt 0:00:10]} Kh7 {[%emt 0:00:00]} 58. Qxe5 {[%emt 0:00:11]} Kg6 {[%emt 0:00:01]} 59. Qd5 {[%emt 0:01:05]} Qe2 {[%emt 0:00:26]} 60. c6 {[%emt 0:00:28]} h4 {[%emt 0:00:02]} 61. Qf5+ {[%emt 0:00:46]} Kg7 {[%emt 0:00:37]} 62. gxh4 {[%emt 0:00:53]} g3 {[%emt 0:00:34]} 63. Qg5+ {[%emt 0:00:41]} Kh7 {[%emt 0:00:50]} 64. Qxg3 {[%emt 0:00:15]} Qxe4 {[%emt 0:01:29]} 65. c7 {[%emt 0:00:15]} Qc6 {[%emt 0:00:26]} 66. h5 {[%emt 0:00:36]} Kh8 {[%emt 0:01:05]} 67. Qe5+ {[%emt 0:00:58]} Kg8 {[%emt 0:00:00]} 68. Qg5+ {[%emt 0:00:07]} Kh8 {[%emt 0:00:18]} 69. Qd8+ {[%emt 0:00:22]} Kh7 {[%emt 0:00:02]} 70. c8=Q {[%emt 0:00:21]} Qc1+ {[%emt 0:00:20]} 71. Qxc1 {[%emt 0:00:06]} 1-0

[Event "Elegant 1st Division League 2024"]
[Site "Dhaka"]
[Date "2024.07.13"]
[Round "3.2"]
[White "Shourya Paul"]
[Black "abzid, Rahman"]
[Result "1/2-1/2"]
[Annotator "RC"]
[ECO "B26"]
[WhiteElo "1813"]
[BlackElo "2037"]
[PlyCount "61"]
[EventDate "2024.07.10"]
[EventType "team-tourn"]
[EventCountry "BAN"]
[SourceTitle "playchess.com"]
[Source "ChessBase"]
[SourceQuality "1"]
[TimeControl "5400+30"]

1. e4 {[%emt 0:00:02]} c5 {[%emt 0:01:19]} 2. Nc3 {[%emt 0:00:20]} Nc6 {[%emt 0:00:07]} 3. g3 {[%emt 0:00:26]} g6 {[%emt 0:00:08]} 4. Bg2 {[%emt 0:00:10]} Bg7 {[%emt 0:00:12]} 5. d3 {[%emt 0:01:32]} e6 {[%emt 0:00:13]} 6. Be3 {[%emt 0:00:07]} d6 {[%emt 0:05:28]} 7. Qd2 {[%emt 0:00:27]} h6 {[%emt 0:02:22]} 8. Nge2 {[%emt 0:01:09]} Nd4 {[%emt 0:01:15]} 9. O-O {[%emt 0:01:39]} Ne7 {[%emt 0:00:16]} 10. f4 {[%emt 0:14:00]} Nec6 {[%emt 0:04:28]} 11. Bf2 {[%emt 0:01:37]} O-O {[%emt 0:01:36]} 12. Nxd4 {[%emt 0:01:17]} Nxd4 {[%emt 0:00:21]} 13. Nd1 {[%emt 0:01:45]} Kh7 {[%emt 0:03:18]} 14. c3 {[%emt 0:08:45]} Nc6 {[%emt 0:01:29]} 15. Ne3 {[%emt 0:00:34]} f5 {[%emt 0:08:45]} 16. Rae1 {[%emt 0:13:46]} Bd7 {[%emt 0:00:59]} 17. Nc2 {[%emt 0:09:29]} Qa5 {[%emt 0:09:15]} 18. a3 {[%emt 0:01:06]} Rad8 {[%emt 0:02:20]} 19. b4 {[%emt 0:01:30]} cxb4 {[%emt 0:00:49]} 20. axb4 {[%emt 0:00:20]} Qc7 {[%emt 0:01:25]} 21. exf5 {[%emt 0:06:41]} gxf5 {[%emt 0:02:35]} 22. Na3 {[%emt 0:05:43]} Ne7 {[%emt 0:05:53]} 23. c4 {[%emt 0:01:22]} Rfe8 {[%emt 0:02:41]} 24. b5 {[%emt 0:03:48]} b6 {[%emt 0:00:51]} 25. Nc2 {[%emt 0:03:33]} d5 {[%emt 0:02:51]} 26. Qe2 {[%emt 0:02:38]} Rc8 {[%emt 0:06:15]} 27. Na3 {[%emt 0:02:47]} Qd6 {[%emt 0:02:09]} 28. Qa2 {[%emt 0:00:52]} dxc4 {[%emt 0:09:35]} 29. dxc4 {[%emt 0:00:56]} Bd4 {[%emt 0:03:38]} 30. Kh1 {[%emt 0:01:25]} Bxf2 {[%emt 0:03:57]} 31. Rxf2 {[%emt 0:00:04]} 1/2-1/2

[Event "Elegant 1st Division League 2024"]
[Site "Dhaka"]
[Date "2024.07.13"]
[Round "3.3"]
[White "Tajane Ganesh"]
[Black "Jodunath, Biswas"]
[Result "1-0"]
[Annotator "RC"]
[ECO "B22"]
[WhiteElo "1772"]
[BlackElo "1918"]
[PlyCount "75"]
[EventDate "2024.07.10"]
[EventType "team-tourn"]
[EventCountry "BAN"]
[SourceTitle "playchess.com"]
[Source "ChessBase"]
[SourceQuality "1"]
[TimeControl "5400+30"]

1. e4 {[%emt 0:00:05]} c5 {[%emt 0:01:01]} 2. c3 {[%emt 0:00:23]} d6 {[%emt 0:01:53]} 3. d4 {[%emt 0:00:06]} cxd4 {[%emt 0:01:30]} 4. cxd4 {[%emt 0:00:02]} g6 {[%emt 0:00:30]} 5. Nc3 {[%emt 0:01:28]} Bg7 {[%emt 0:00:30]} 6. h3 {[%emt 0:07:12]} Nf6 {[%emt 0:07:59]} 7. g3 {[%emt 0:12:58]} O-O {[%emt 0:04:10]} 8. Bg2 {[%emt 0:00:03]} Nc6 {[%emt 0:01:59]} 9. Nge2 {[%emt 0:00:37]} Bd7 {[%emt 0:01:37]} 10. Be3 {[%emt 0:01:54]} a6 {[%emt 0:05:16]} 11. O-O {[%emt 0:00:18]} Rc8 {[%emt 0:08:06]} 12. Qd2 {[%emt 0:05:24]} b5 {[%emt 0:06:30]} 13. b3 {[%emt 0:06:31]} h5 {[%emt 0:08:49]} 14. Rac1 {[%emt 0:01:45]} Kh7 {[%emt 0:12:28]} 15. d5 {[%emt 0:12:25]} Nb8 {[%emt 0:04:52]} 16. Nd4 {[%emt 0:01:58]} Qa5 {[%emt 0:05:52]} 17. Nce2 {[%emt 0:07:27]} Qxd2 {[%emt 0:03:05]} 18. Bxd2 {[%emt 0:00:01]} Rxc1 {[%emt 0:03:53]} 19. Rxc1 {[%emt 0:00:02]} Rc8 {[%emt 0:00:15]} 20. Rxc8 {[%emt 0:09:15]} Bxc8 {[%emt 0:00:09]} 21. f4 {[%emt 0:04:46]} Bb7 {[%emt 0:01:52]} 22. Kf2 {[%emt 0:00:38]} Kg8 {[%emt 0:00:42]} 23. Ke3 {[%emt 0:02:03]} Nfd7 {[%emt 0:02:41]} 24. Bb4 {[%emt 0:03:19]} Kf8 {[%emt 0:01:25]} 25. Nc3 {[%emt 0:03:24]} Ke8 {[%emt 0:01:38]} 26. a4 {[%emt 0:02:47]} bxa4 {[%emt 0:00:57]} 27. Nxa4 {[%emt 0:00:04]} Kd8 {[%emt 0:05:01]} 28. h4 {[%emt 0:01:12]} Nf6 {[%emt 0:01:05]} 29. Ba5+ {[%emt 0:03:34]} Ke8 {[%emt 0:00:48]} 30. Bf3 {[%emt 0:00:51]} Nbd7 {[%emt 0:01:25]} 31. Kd3 {[%emt 0:01:49]} Nb8 {[%emt 0:02:37]} 32. Kc4 {[%emt 0:01:31]} Kd7 {[%emt 0:01:22]} 33. e5 {[%emt 0:01:00]} Ng4 {[%emt 0:03:10]} 34. e6+ {[%emt 0:01:01]} fxe6 {[%emt 0:00:58]} 35. dxe6+ {[%emt 0:00:03]} Kc8 {[%emt 0:00:24]} 36. Nb6+ {[%emt 0:01:21]} Kc7 {[%emt 0:01:15]} 37. Nd5+ {[%emt 0:00:11]} Kc8 {[%emt 0:00:36]} 38. Nxe7# {[%emt 0:00:03]} 1-0

[Event "Elegant 1st Division League 2024"]
[Site "Dhaka"]
[Date "2024.07.13"]
[Round "3.4"]
[White "Shankhodip De"]
[Black "Bhuiyan, Golam Mostafa"]
[Result "1-0"]
[Annotator "RC"]
[ECO "E11"]
[WhiteElo "1942"]
[BlackElo "2078"]
[PlyCount "89"]
[EventDate "2024.07.10"]
[EventType "team-tourn"]
[EventCountry "BAN"]
[SourceTitle "playchess.com"]
[Source "ChessBase"]
[SourceQuality "1"]
[TimeControl "5400+30"]

1. d4 {[%emt 0:00:01]} d5 {[%emt 0:08:29]} 2. c4 {[%emt 0:00:39]} e6 {[%emt 0:00:02]} 3. Nf3 {[%emt 0:00:06]} Nf6 {[%emt 0:00:06]} 4. g3 {[%emt 0:00:07]} c6 {[%emt 0:00:22]} 5. Bg2 {[%emt 0:00:22]} Bb4+ {[%emt 0:01:47]} 6. Bd2 {[%emt 0:10:20]} Bxd2+ {[%emt 0:00:26]} 7. Nbxd2 {[%emt 0:00:38]} O-O {[%emt 0:04:59]} 8. Qc2 {[%emt 0:00:54]} b6 {[%emt 0:01:13]} 9. O-O {[%emt 0:01:30]} Bb7 {[%emt 0:00:06]} 10. e4 {[%emt 0:01:01]} dxe4 {[%emt 0:00:21]} 11. Nxe4 {[%emt 0:00:10]} Nxe4 {[%emt 1:18:09]} 12. Qxe4 {[%emt 0:00:03]} Nd7 {[%emt 0:00:00]} 13. Rad1 {[%emt 0:06:42]} Qc7 {[%emt 0:00:00]} 14. Qc2 {[%emt 0:00:55]} Nf6 {[%emt 0:00:00]} 15. c5 {[%emt 0:01:45]} h6 {[%emt 0:00:00]} 16. Rfe1 {[%emt 0:03:40]} Rfd8 {[%emt 0:00:00]} 17. a3 {[%emt 0:16:34]} bxc5 {[%emt 0:00:00]} 18. dxc5 {[%emt 0:01:43]} Rd5 {[%emt 0:00:00]} 19. Nd2 {[%emt 0:08:13]} Re5 {[%emt 0:00:00]} 20. Rxe5 {[%emt 0:01:45]} Qxe5 {[%emt 0:00:00]} 21. b4 {[%emt 0:00:11]} Nd5 {[%emt 0:00:00]} 22. Nc4 {[%emt 0:01:09]} Qc7 {[%emt 0:00:00]} 23. Re1 {[%emt 0:03:36]} Ba6 {[%emt 0:06:00]} 24. Nd6 {[%emt 0:01:44]} Bb7 {[%emt 0:00:00]} 25. f4 {[%emt 0:05:50]} Ne7 {[%emt 0:00:00]} 26. Bh3 {[%emt 0:11:46]} Bc8 {[%emt 0:00:00]} 27. Qb2 {[%emt 0:03:00]} Kf8 {[%emt 0:00:00]} 28. Qc2 {[%emt 0:06:51]} Kg8 {[%emt 0:00:00]} 29. Qb2 {[%emt 0:00:01]} Kf8 {[%emt 0:00:00]} 30. Qb3 {[%emt 0:01:02]} Nd5 {[%emt 0:01:57]} 31. f5 {[%emt 0:01:28]} Qe7 {[%emt 0:00:41]} 32. Nxc8 {[%emt 0:03:22]} Rxc8 {[%emt 0:00:15]} 33. fxe6 {[%emt 0:00:06]} Re8 {[%emt 0:00:54]} 34. Rf1 {[%emt 0:02:01]} Nf6 {[%emt 0:00:12]} 35. exf7 {[%emt 0:03:57]} Rd8 {[%emt 0:00:59]} 36. Qe6 {[%emt 0:01:20]} Qxe6 {[%emt 0:00:46]} 37. Bxe6 {[%emt 0:00:01]} Rd3 {[%emt 0:00:01]} 38. Rc1 {[%emt 0:01:01]} Re3 {[%emt 0:00:12]} 39. Bc4 {[%emt 0:01:09]} Rxa3 {[%emt 0:01:00]} 40. b5 {[%emt 0:00:01]} cxb5 {[%emt 0:00:39]} 41. c6 {[%emt 0:00:15]} Ne4 {[%emt 0:00:34]} 42. c7 {[%emt 0:00:40]} Nd6 {[%emt 0:00:03]} 43. Rd1 {[%emt 0:00:32]} Rc3 {[%emt 0:00:08]} 44. c8=Q+ {[%emt 0:00:21]} Nxc8 {[%emt 0:00:06]} 45. Rd8+ {[%emt 0:00:03]} 1-0